Cogmind - Beta 13 *** ADVENTURER MODE // 2024.04.13 @ 19:47:17 Player: FourDJ Result: Destroyed by as-39367 with Assembled Blade Performance ------------- Evolutions (0) 0 Regions Visited (2) 400 Robots Destroyed (18) 90 Value Destroyed (352) 352 Prototype IDs (0) 0 Alien Tech Used (0) 0 Bonus (0) 0 TOTAL SCORE: 842 Bonus ------- None Cogmind --------- Core Integrity 0/250 Matter 300/300 Energy 100/100 System Corruption 0% Temperature Cool (0) Movement Core (50) Location -10/Mines Parts ------- > --- POWER (1) -------- (None) > --- PROPULSION (2) --- (None) > --- UTILITY (2) ------ (None) > --- WEAPON (2) ------- (None) > --- INVENTORY (5) ---- Aluminum Leg Flight Unit Flight Unit Flight Unit Flight Unit Peak State ------------ > --- POWER ------------ Ion Engine > --- PROPULSION ------- Aluminum Leg Aluminum Leg > --- UTILITY ---------- Structural Scanner Terrain Scanner > --- WEAPON ----------- EM Pulse Gun Assault Rifle > --- INVENTORY -------- Aluminum Leg Heat Sink Heat Sink [Rating: 7] Favorites ----------- Power Ion Engine Engine Ion Engine Propulsion Aluminum Leg Leg Aluminum Leg Utility Terrain Scanner Device Terrain Scanner Weapon Assault Rifle Energy Gun EM Pulse Gun Ballistic Gun Assault Rifle Build | -11 -10 -10 ------- Run | Yrd Mat Min Slots Evolved . | . . . Power . | . . . Propulsion . | . . . Utility . | . . . Weapon . | . . . Parts Attached 10 | 5 5 . Power 2 | 1 1 . Engine 2 | 1 1 . Core . | . . . Reactor . | . . . Propulsion 3 | 2 1 . Treads . | . . . Leg 3 | 2 1 . Wheel . | . . . Hover . | . . . Flight . | . . . Utility 3 | . 3 . Device 3 | . 3 . Storage . | . . . Processor . | . . . Hackware . | . . . Protection . | . . . Artifact . | . . . Weapon 2 | 2 . . Energy Gun 1 | 1 . . Energy Cannon . | . . . Ballistic Gun 1 | 1 . . Ballistic Cannon . | . . . Launcher . | . . . Special Weapon . | . . . Impact Weapon . | . . . Slashing Weapon . | . . . Piercing Weapon . | . . . Special Melee Weapon . | . . . Unidentified Prototypes . | . . . Parts Lost 6 | . . 6 Power . | . . . Propulsion 2 | . . 2 Utility 2 | . . 2 Weapon 2 | . . 2 Highest Loss Streak 6 | . . 6 To Critical Strikes . | . . . Average Slot Usage (%) 91 | . 91 91 Engine 13 | . 14 12 Leg 27 | . 28 26 Device 21 | . 20 28 Energy Gun 13 | . 14 10 Ballistic Gun 14 | . 14 14 Naked Turns 2 | . . 2 Heaviest Build 11 | 7 11 11 Greatest Support 20 | 20 20 20 Greatest Overweight (x) . | . . . Average Overweight (x) . | . . . Largest Inventory Capacity 5 | 5 5 5 Average Capacity 5 | 5 5 5 Most Carried 5 | 2 5 5 Average Carried 2 | . 2 5 Final Capacity 5 | 5 5 5 Final Carried 5 | 1 5 5 Class Distribution -------------------- 80% | Mutant 19% | Scavenger-Mutant Dominant Class ---------------- Mutant | -10/Materials Scavenger-Mutant | -10/Mines Resources | -11 -10 -10 ----------- Run | Yrd Mat Min Matter Collected 396 | 259 137 . Remotely . | . . . Salvage Created 653 | 36 617 . Parts 47 | 3 44 . Haulers Intercepted . | . . . Recyclers Shooed 2 | . 2 . Parts Field Recycled . | . . . Retrieved Matter . | . . . Parts Self-Destructed . | . . . Prevented . | . . . Kills | -11 -10 -10 ------- Run | Yrd Mat Min Combat Hostiles Destroyed 10 | 1 9 . Guns 10 | 1 9 . Classes Destroyed 6 | 1 5 . Worker 1 | . 1 . Builder 2 | . 2 . Recycler 2 | . 2 . Watcher 3 | . 3 . Swarmer 3 | . 3 . Grunt 7 | 1 6 . Best Kill Streak 3 | 1 3 . Combat Bots Only 3 | 1 3 . Max Kills in Single Turn 2 | 1 2 . Gunslinging . | . . . Exploded . | . . . Melee . | . . . Uniques/NPCs Destroyed . | . . . Combat | -11 -10 -10 -------- Run | Yrd Mat Min Hostile Shots Fired 93 | 2 24 67 Missed 28 | 1 7 20 Damage Taken 700 | 9 134 557 Core 257 | . 68 189 Absorbed by Shields . | . . . Ignored by Resistances 205 | 3 45 157 Core Remaining (%) 100 | 100 . . Volleys Fired 37 | 3 29 5 Largest 2 | 2 2 2 Hottest 60 | 60 60 60 Shots Fired 70 | 6 58 6 Gun 70 | 6 58 6 Cannon . | . . . Launcher . | . . . Special . | . . . Kinetic 37 | 3 29 5 Thermal . | . . . Explosive . | . . . Electromagnetic 33 | 3 29 1 Robot Hit Streak 14 | 6 14 2 Robot Miss Streak 4 | . 4 2 Penetration Max . | . . . Secondary Targets 3 | . 3 . Max Gunslinging Chain 1 | . 1 . Shots Hit Robots 47 | 6 39 2 Core Hits 25 | 1 23 1 Critical Kills . | . . . Critical Parts Destroyed . | . . . Critical Strikes . | . . . Melee Attacks . | . . . Impact . | . . . Slashing . | . . . Piercing . | . . . Sneak Attacks . | . . . Combat Hostiles . | . . . Follow-up Attacks . | . . . Damage Inflicted 785 | 83 679 23 Guns 693 | 83 587 23 Cannons . | . . . Explosions 92 | . 92 . Melee . | . . . Ramming . | . . . Kinetic 337 | 42 272 23 Thermal 92 | . 92 . Explosive . | . . . Electromagnetic 356 | 41 315 . Impact . | . . . Slashing . | . . . Piercing . | . . . Highest Corruption . | . . . Average Corruption . | . . . Corruption Purged . | . . . Corruption Blocked . | . . . Overload Shots . | . . . Overflow Damage . | . . . Projectiles . | . . . Explosions . | . . . Melee . | . . . Knockbacks . | . . . Impact . | . . . Kinetic . | . . . Secondary . | . . . Self-Inflicted Damage . | . . . Shots . | . . . Rammed . | . . . Targets Rammed . | . . . Kicked . | . . . Crushed . | . . . Highest Temperature 42 | 6 39 42 Average Temperature 19 | 6 21 24 Received Heat Transfer 235 | 6 69 160 Siege Activations . | . . . Robots Corrupted . | . . . Combat Hostiles . | . . . Parts Fried . | . . . Impact Corruptions . | . . . Robots Melted . | . . . Combat Hostiles . | . . . Parts Melted . | . . . Heat Transferred 100 | . 100 . Parts Sabotaged . | . . . Parts Stolen . | . . . Parts Stripped . | . . . Power Chain Reactions 2 | . 2 . Alert | -11 -10 -10 ------- Run | Yrd Mat Min Peak Influence 149 | 20 149 28 Initial 28 | . 11 28 Average 55 | 2 68 24 Maximum Alert Level . | . . . Low Security (%) 100 | 100 100 100 Level 1 . | . . . Level 2 . | . . . Level 3 . | . . . Level 4 . | . . . Level 5 . | . . . High Security . | . . . Max Security . | . . . Squads Dispatched 1 | . 1 . Investigation 1 | . 1 . Extermination . | . . . Reinforcement . | . . . Assault . | . . . Garrison . | . . . Intercept . | . . . Searches Triggered . | . . . Construction Impeded . | . . . Haulers Reinforced . | . . . Active Scanning Responses . | . . . Cargo Convoy Interrupts . | . . . Stealth | -11 -10 -10 --------- Run | Yrd Mat Min Distress Signals . | . . . Communications Jammed . | . . . Distress Signals . | . . . Times Spotted 35 | 1 16 18 Peak Tracking Total 20 | 1 3 20 Tactical Retreats 2 | . 1 1 Traps | -11 -10 -10 ------- Run | Yrd Mat Min Traps Triggered . | . . . Indirectly . | . . . Trap Hack Attempts . | . . . Triggered . | . . . Disarmed . | . . . Reprogrammed . | . . . Reused . | . . . Traps Extracted . | . . . Installed . | . . . Triggered . | . . . Machines | -11 -10 -10 ---------- Run | Yrd Mat Min Machines Disabled . | . . . Max in Single Turn . | . . . Machines Repaired . | . . . Machines Dismantled . | . . . Machines Sabotaged . | . . . Overloaded Fab Kills . | . . . Hacking | -11 -10 -10 --------- Run | Yrd Mat Min Machines Accessed 4 | . 4 . Terminals 3 | . 3 . Fabricators . | . . . Repair Stations . | . . . Recycling Units 1 | . 1 . Scanalyzers . | . . . Garrison Access . | . . . Total Hacks 12 | . 12 . Successful 8 | . 8 . Failed 4 | . 4 . Catastrophic 1 | . 1 . Database Lockouts . | . . . Manual . | . . . Terminals 11 | . 11 . Fabricators . | . . . Repair Stations . | . . . Recycling Units 1 | . 1 . Scanalyzers . | . . . Garrison Access . | . . . Terminal Hacks 7 | . 7 . Record 3 | . 3 . Scanalyzer Index 1 | . 1 . Unreport Threat 1 | . 1 . Locate Traps 1 | . 1 . Registered Components 1 | . 1 . Fabricator Hacks . | . . . Repair Station Hacks . | . . . Recycling Unit Hacks 1 | . 1 . Retrieve Components 1 | . 1 . Scanalyzer . | . . . Garrison Access Hacks . | . . . Unauthorized Hacks . | . . . Terminals . | . . . Fabricators . | . . . Repair Stations . | . . . Recycling Units . | . . . Scanalyzers . | . . . Garrison Access . | . . . Data Cores Recovered . | . . . Used . | . . . Hacking Detections 4 | . 4 . Full Trace Events 1 | . 1 . Feedback Events . | . . . Feedback Blocked . | . . . Robot Schematics Acquired . | . . . Robots Built . | . . . Authchips . | . . . Time . | . . . Total Robot Build Rating . | . . . Part Schematics Acquired . | . . . Parts Built . | . . . Authchips . | . . . Time . | . . . Total Part Build Rating . | . . . Parts Repaired . | . . . Time . | . . . Parts Recycled . | . . . Recycled Matter . | . . . Retrieved Matter . | . . . Retrieved Components . | . . . Parts Scanalyzed . | . . . Part Schematics Acquired . | . . . Parts Damaged . | . . . Bothacking | -11 -10 -10 ------------ Run | Yrd Mat Min Used RIF Installer . | . . . Robots Hacked . | . . . Non-combat . | . . . Combat . | . . . Robot Hacks Applied . | . . . Relay Couplers Released . | . . . Fabnet Peak Effective % . | . . . Robots Rewired . | . . . Allies Hacked . | . . . Hacks Repelled . | . . . Allies | -11 -10 -10 -------- Run | Yrd Mat Min Total Allies . | . . . Largest Group . | . . . Highest-Rated Group . | . . . Highest-Rated Ally . | . . . Total Orders . | . . . Ally Attacks . | . . . Total Damage . | . . . Kills . | . . . Allies Corrupted . | . . . Allies Melted . | . . . Intel | -11 -10 -10 ------- Run | Yrd Mat Min Robot Analysis Total . | . . . Derelict Logs Recovered . | . . . Drone Launches . | . . . Drone Recoveries . | . . . Exploration | -11 -10 -10 ------------- Run | Yrd Mat Min Turns Passed 673 | 83 523 67 Spaces Moved 461 | 65 349 47 Core 22 | 20 . 2 Treads . | . . . Legs 439 | 45 349 45 Wheels . | . . . Hover . | . . . Flight . | . . . Fastest Speed 50 | 50 120 50 Average Speed 116 | 98 120 117 Slowest Speed 120 | 120 120 120 Overloaded Moves . | . . . Propulsion Burnouts . | . . . Robots Hopped . | . . . Cave-ins Triggered . | . . . Exploration Rate (%) 27 | 6 59 18 Regions Visited 2 Branch Regions 1 Pre-discovered Areas . | . . . Known Exits Taken . | . . . Unknown Exits Taken 2 | 1 1 . Scrap Searched 1 | . . 1 Spaces Dug . | . . . Terrain Destroyed 10 | . 10 . Melee . | . . . Projectile . | . . . AOE 10 | . 10 . Terrain Rammed . | . . . Walls Destroyed . | . . . Machines Disabled . | . . . Actions | -11 -10 -10 --------- Run | Yrd Mat Min Total 528 | 78 397 53 Wait 1 | . . 1 Move 459 | 64 348 47 Hop . | . . . Pick Up 16 | 6 10 . Fast Attach . | . . . Attach 9 | 5 4 . Detach 1 | . 1 . Swap 1 | . 1 . Drop 4 | . 4 . Fire 37 | 3 29 5 Melee . | . . . Ram . | . . . Kick . | . . . Crush . | . . . Escape Stasis . | . . . Rewire . | . . . Trap . | . . . Miscellaneous . | . . . Route ------- -11/Scrapyard -10/Materials (discovered 4 exits: [*Mat] / [*Min x2] / [Sub]) -10/Mines History --------- Turn | Location | Event 2 | -11/Scrapyard | Met Revision 17 62 | -11/Scrapyard | Discovered new exit (range 8) 84 | -11/Scrapyard | Entered Materials 119 | -10/Materials | Discovered new exit (range 4) 182 | -10/Materials | Discovered new exit (range 3) 263 | -10/Materials | Discovered new exit (range 7) 308 | -10/Materials | Build established: Mutant 344 | -10/Materials | Discovered new exit (range 10) 607 | -10/Materials | Entered Mines 608 | -10/Mines | Assembled infested the area 670 | -10/Mines | Core integrity fell below 50% 673 | -10/Mines | Core integrity fell below 20% 674 | -10/Mines | Destroyed by as-39367 with Assembled Blade Last Messages --------------- W-16 Scout destroyed. Acquired 9 matter. LOCATION=UNKNOWN GOAL=ESCAPE Something is scanning the area. ALERT: Infestation in the mines, dispatching Demolisher response squad. Searching scrap... Found Med. Battery. Found Lrg. Storage Unit. Found Assault Rifle. Found 18 Matter. [Achievement: Hunted] as-13112 destroyed. EM Pulse Gun destroyed. Ion Engine severed. Aluminum Leg destroyed. Structural Scanner destroyed. Terrain Scanner destroyed. Assault Rifle destroyed. Map ----- +----------------------------------------------------+ | ?????????????????????????????????????????????????? | | ?????????????????????????????????????????????????? | | ?????????????????????????????????????????????????? | | ?????????????????????????????????????????????????? | | ?????????????????????????????????????????????????? | | ?????????????????????????????????????????????????? | | ?????????????????????????????????????????????????? | | ?????????????????????????????????????????????????? | | ?????????????????????????????????????????????????? | | ?????????????????????????????????????????????????? | | ?????????????????????????????????????????????????? | | ?????????????????????????????????????????????????? | | ?????????????????????????????? ??????????????????? | | ?????????????????????????????????????????????????? | | ?????????????????????????????????????????????????? | | ??????????????????#??????????????????????????????? | | ?????????????????????######??????????????????????? | | ????????????????????########?????????????????????? | | ????????????????????### ########????????????????? | | ????????????????????## ########???????????????? | | ????????????????????## ## ###???????????????? | | ?????????????#?????### ##???????????????? | | ?????????????????##### ##???????????????? | | ????????????????##### ###???????????????? | | ????????????####### a a ##??????????????????? | | ???????????####### a@a*###??????????????????? | | ???????????### aaaaaa###???????????????????? | | ???????????## aa######???????????????????? | | ??????????### a ######????????????????????? | | ??????????### a####??????????????????????? | | ??????????## a ##????????????????????????? | | ??????????## ##????????????????????????? | | ??????????## ###?????????#??????????????? | | ??????????### ####????????????????????????? | | ??????????#### ####???#????#????????????????? | | ???????????### #####??????#??????????????????? | | ??????????#### ####???????????????????????????? | | ??????????### ################??###??????????? | | ??????????## ############## ##??????????? | | ??????????## %* == ??????????? | | ??????????## [ % %%[ ???????????? | | ?????????### ##### ##### = ???????????? | | ?????????## " ##### ##### ???? ?????????????? | | ?????### ##?## ##??#????????????????????? | | ?????## ###?## ##???????????????????????? | | ?????## ######### ##???????????????????????? | | ?????### ########## ##???????????????????????? | | ?????### ###??## ! ##???????????????????????? | | ??????## ##??###[######???????????????????????? | | ??????# ??????##%######???????????????????????? | +----------------------------------------------------+ Best States ------------- Heat Dissipation 25 Energy Generation 10 Energy Capacity 250 Matter Stores 300 Matter Capacity 300 Sight Range 16 Terrain Scan Range 14 Terrain Scan Density 10 Resistance: KI 20 Resistance: TH 20 Resistance: EX 20 Resistance: EM 20 Resistance: I 20 Resistance: S 20 Resistance: P 20 Evasion (%) 55 Offensive Hacking 10 Item Schematics ----------------- None Robot Schematics ------------------ None Fabricated ------------ Nothing Alien Tech Used ----------------- None Achievements -------------- Hunted Challenges ------------ None Game ------ Seed ArcReactionBroadsword Manual? 0 Play Time 00:14:10 Cumulative 2.0 hours Start 2024.04.13 @ 19:32:03 End 2024.04.13 @ 19:47:17 Sessions 1 Manual Loads 0 Difficulty Adventurer Special Mode None Game No. 3 Rogue 0 Adventurer 3 Explorer 0 Win Type - Total 0 Types 0/0/0/0/0/0/0/0/0 Lore% 0 Gallery% 5 Achievement% 5 Wizard Run 0 Options --------- Layout 1 ASCII 0 Keyboard 0 Movement Mouse Keybinds 0 Fullscreen 1 Font 24/Smallcaps Map View 50x35 Zoom Use 0% Tactical HUD 0 Map Filters NONE Filters NONE Steam 1 RUN: 2c48d987-b924-40e4-99b2-57bd6feeedb0